Workbook

Sheet PLAN NAB 2013
D2: PLAN NABAVE ZA 2014. GODINU
F3: MEDICINSKA I KEMIJSKA ŠKOLA ŠIBENIK
B5: KONTO | C5: FIN. PLAN 2014. | D5: PREDMET NABAVE | E5: PLANIRANA VRIJ. | F5: PROCJENJENA VRIJED. BEZ PDV | G5: NAČIN NAB. | H5: VLASTITA SA PDV-om | I5: UČENIČKA SA PDV-om | J5: POMOĆI IZ PRORAČUNA
B6: 32, 34, 42 | C6: =SUM(C8+C120+C135) -> 461755 | D6: MATERIJ. I FIN. RASHODI | E6: =SUM(E8+E120+E135+E175) -> 281800 | F6: =SUM(F8+F120+F135+F175) -> 225440 | G6: (ČLANAK, ST.) | H6: =SUM(H8+H120+H135+H175) -> 18000 | I6: =SUM(I8+I120+I135+I175) -> 158385 | J6: =SUM(J8+J120+J135+J175) -> 3570
B8: 32 | C8: =SUM(C10+C42+C102) -> 456685 | D8: MATERIJALNI RASHODI | E8: =SUM(E10+E42+E102) -> 280300 | F8: =SUM(F10+F42+F102) -> 224240 | H8: =SUM(H10+H42+H102) -> 18000 | I8: =SUM(I10+I42+I102) -> 158385 | J8: =SUM(J10+J42+J102) -> 0
C10: =SUM(C11+C18+C26+C32+C37+C40) -> 91300 | D10: Rashodi za materijal i energiju | E10: =SUM(E11+E18+E26+E32+E37+E41) -> 86300 | F10: =SUM(F11+F18+F26+F32+F37+F41) -> 69040 | H10: =SUM(H11+H18+H26+H32+H37+H41) -> 5000 | I10: =SUM(I11+I18+I26+I32+I37+I41) -> 0 | J10: =SUM(J11+J18+J26+J32+J37+J41) -> 0
B11: 3221 | C11: =SUM(C12:C17) -> 68000 | D11: Uredski materijal i ostali mat. rashodi | E11: =SUM(E12:E17) -> 66000 | F11: =SUM(F12:F17) -> 52800 | H11: =SUM(H12:H17) -> 2000 | I11: =SUM(I12:I17) -> 0 | J11: =SUM(J12:J17) -> 0
B12: 32211 | C12: =E12+H12+J12 -> 24000 | D12: Uredski materijal | E12: 24000 | F12: 19200 | G12: bagat. nab.
B13: 32212 | C13: 6000 | D13: Literatura (publikacije, časopisi, glasila, knjige | E13: 4000 | F13: 3200 | G13: bagat. nab. | H13: 2000
B14: 32213 | C14: 0 | D14: Arhivski materijal
B15: 32214 | C15: 8000 | D15: Materijal i sredstva za čišćenje i održavanje | E15: 8000 | F15: 6400 | G15: bagat. nab.
B16: 32216 | C16: 3000 | D16: Materijal za higijenske potrebe i njegu | E16: 3000 | F16: 2400 | G16: bagat. nab.
B17: 32219 | C17: 27000 | D17: Ost. mat. - laboratorij, zdr. njega, fizioter. i ost. | E17: 27000 | F17: 21600 | G17: bagat. nab.
B18: 3222 | C18: =SUM(C19:C25) -> 0 | D18: Materijal i sirovine | E18: =SUM(E19:E25) -> 0 | F18: =SUM(F19:F25) -> 0 | H18: =SUM(H19:H25) -> 0 | I18: =SUM(I19:I25) -> 0 | J18: =SUM(J19:J25) -> 0
B19: 32221 | C19: =E19+H19+J19 -> 0 | D19: Osnovni materijal i sirovine
B20: 32222 | C20: =E20+H20+J20 -> 0 | D20: Pomoćni materijal
B21: 32223 | C21: 0 | D21: Kalo, rasip, lom i kvar materijala
B22: 32224 | C22: 0 | D22: Namirnice
B23: 32225 | C23: 0 | D23: Roba
B24: 32226 | C24: 0 | D24: Gotovi proizvodi
B25: 32229 | C25: 0 | D25: Ostali materijal i sirovine
B26: 3223 | C26: =SUM(C27:C31) -> 0 | D26: Energija | E26: =SUM(E27:E31) -> 0 | F26: =SUM(F27:F31) -> 0 | H26: =SUM(H27:H31) -> 0 | I26: =SUM(I27:I31) -> 0 | J26: =SUM(J27:J31) -> 0
B27: 32231 | C27: =E27+H27+J27 -> 0 | D27: Električna energija
B28: 32232 | C28: =E28+H28+J28 -> 0 | D28: Topla voda (toplana)
B29: 32233 | C29: =E29+H29+J29 -> 0 | D29: Plin
B30: 32234 | C30: =E30+H30+J30 -> 0 | D30: Motorni benzin i dizel gorivo
B31: 32239 | C31: =E31+H31+J31 -> 0 | D31: Ost. mat. za proizvodnju energije (ugljen, drva)
B32: 3224 | C32: =SUM(C33:C36) -> 2300 | D32: Mat. i dijelovi za tek. i invest. održavanje | E32: =SUM(E33:E36) -> 2300 | F32: =SUM(F33:F36) -> 1840 | H32: =SUM(H33:H36) -> 0 | I32: =SUM(I33:I36) -> 0 | J32: =SUM(J33:J36) -> 0
B33: 32241 | C33: =E33+H33+J33 -> 0 | D33: Materijal i dijelovi za tekuće i inv. održ. građ. objekata
B34: 32242 | C34: =E34+H34+J34 -> 0 | D34: Mat. i dijelovi za tek. i inv. održ. postrojenja i opreme
B35: 32243 | C35: =E35+H35+J35 -> 0 | D35: Mat. i dijelovi za tek. i inv. održ. transp. sredstava
B36: 32244 | C36: =E36+H36+J36 -> 2300 | D36: Ost. ost. i dijelovi za tekuće i investicijsko održavanje | E36: 2300 | F36: 1840 | G36: bagat. nab.
B37: 3225 | C37: =SUM(C38:C39) -> 19000 | D37: Sitni inventar i auto gume | E37: =SUM(E38:E39) -> 16000 | F37: =SUM(F38:F39) -> 12800 | H37: =SUM(H38:H39) -> 3000 | I37: =SUM(I38:I39) -> 0 | J37: =SUM(J38:J39) -> 0
B38: 32251 | C38: =E38+H38+J38 -> 19000 | D38: Sitni inventar | E38: 16000 | F38: 12800 | G38: bagat. nab. | H38: 3000
B39: 32252 | C39: =E39+H39+J39 -> 0 | D39: Auto gume
B40: 3227 | C40: =E40+H40+J40 -> 2000 | D40: Službena, radna i zaštitna odjeća i obuća | E40: =E41 -> 2000 | F40: =F41 -> 1600 | H40: =H41 -> 0 | I40: =I41 -> 0 | J40: =J41 -> 0
B41: 32271 | C41: =E41+H41+J41 -> 2000 | D41: Službena, radna i zaštitna odjeća i obuća | E41: 2000 | F41: 1600 | G41: bagat. nab. | H41: 0
C42: =SUM(C43+C49+C57+C63+C71+C76+C81+C91+C95) -> 194632 | D42: Rashodi za usluge | E42: =SUM(E43+E49+E57+E63+E71+E76+E81+E91+E95) -> 186632 | F42: =SUM(F43+F49+F57+F63+F71+F76+F81+F91+F95) -> 149300 | H42: =SUM(H43+H49+H57+H63+H71+H76+H81+H91+H95) -> 8000 | I42: =SUM(I43+I49+I57+I63+I71+I76+I81+I91+I95) -> 0 | J42: =SUM(J43+J49+J57+J63+J71+J76+J81+J91+J95) -> 0
B43: 3231 | C43: =SUM(C44:C48) -> 29000 | D43: Usluge telefona, pošte i prijevoza | E43: =SUM(E44:E48) -> 28000 | F43: =SUM(F44:F48) -> 22400 | H43: =SUM(H44:H48) -> 1000 | I43: =SUM(I44:I48) -> 0 | J43: =SUM(J44:J48) -> 0
B44: 32311 | C44: =E44+H44+J44 -> 22000 | D44: Usluge telefona, telefaksa | E44: 21000 | F44: 16800 | G44: bagat. nab. | H44: 1000
B45: 32312 | C45: =E45+H45+J45 -> 3500 | D45: Usluge interneta | E45: 3500 | F45: 2800 | G45: bagat. nab. | H45: 0
B46: 32313 | C46: =E46+H46+J46 -> 3500 | D46: Poštarina (pisma, tiskanice i sl.) | E46: 3500 | F46: 2800 | G46: bagat. nab.
B47: 32314 | C47: =E47+H47+J47 -> 0 | D47: Rent-a-car i taxi prijevoz | E47: 0 | F47: 0 | H47: 0 | I47: 0 | J47: 0
B48: 32319 | C48: =E48+H48+J48 -> 0 | D48: Ostale usluge za komunikaciju i prijevoz
B49: 3232 | C49: =SUM(C50:C56) -> 53832 | D49: Usluge tekućeg i investicijskog održavanja | E49: =SUM(E50:E56) -> 50832 | F49: =SUM(F50:F56) -> 40660 | H49: =SUM(H50:H56) -> 3000 | I49: =SUM(I50:I56) -> 0 | J49: =SUM(J50:J56) -> 0
B50: 32321 | C50: =E50+H50+J50 -> 0 | D50: Usl. tek. i invest. održavanja građ. objekata
B51: 32322 | C51: 0 | D51: Usl. tek. i invest. održ. postrojenja i opreme
B52: 32323 | C52: 0 | D52: Usl. tek. i invest. održ. prijevoznih sredstava
B53: 32329 | C53: 17032 | D53: Ost. usluge tekućeg i invest. održavanja | E53: 14032 | F53: 11220 | G53: bagat. nab. | H53: 3000
B54: 32329 | C54: 9800 | D54: Razredni odjeli | E54: 9800 | F54: 7840 | G54: bagat. nab.
B55: 32329 | C55: 27000 | D55: Operativni plan | E55: 27000 | F55: 21600 | G55: bagat. nab.
B56: 32329 | C56: 0 | D56: Stručni nadzor nad investicijskim održavanjem
B57: 3233 | C57: =SUM(C58:C62) -> 0 | D57: Usluge promidžbe i informiranja | E57: =SUM(E58:E62) -> 0 | F57: =SUM(F58:F62) -> 0 | H57: =SUM(H58:H62) -> 0 | I57: =SUM(I58:I62) -> 0 | J57: =SUM(J58:J62) -> 0
B58: 32331 | C58: =E58+H58+J58 -> 0 | D58: Elektronski mediji
B59: 32332 | C59: =E59+H59+J59 -> 0 | D59: Tisak
B60: 32333 | C60: =E60+H60+J60 -> 0 | D60: Izložbeni prostor na sajmu
B61: 32334 | C61: =E61+H61+J61 -> 0 | D61: Promidžbeni materijal
B62: 32339 | C62: =E62+H62+J62 -> 0 | D62: Ostale usluge promidžbe i informiranja | E62: 0 | F62: 0 | H62: 0 | I62: 0 | J62: 0
B63: 3234 | C63: =SUM(C64:C70) -> 37200 | D63: Komunalne usluge | E63: =SUM(E64:E70) -> 36200 | F63: =SUM(F64:F70) -> 28960 | H63: =SUM(H64:H70) -> 1000 | I63: =SUM(I64:I70) -> 0 | J63: =SUM(J64:J70) -> 0
B64: 32341 | C64: =E64+H64+J64 -> 10000 | D64: Opskrba vodom | E64: 9000 | F64: 7200 | G64: bagat. nab. | H64: 1000
B65: 32342 | C65: =E65+H65+J65 -> 15750 | D65: Iznošenje i odvoz smeća | E65: 15750 | F65: 12600 | G65: bagat. nab.
B66: 32343 | C66: 3000 | D66: Deratizacija i dezinsekcija | E66: 3000 | F66: 2400 | G66: bagat. nab.
B67: 32344 | C67: 0 | D67: Dimnjačarske i ekološke usluge
B68: 32345 | C68: 0 | D68: Usluge čišćenja, pranja i slično
B69: 32346 | C69: 0 | D69: Usluge čuvanja imovine i osoba
B70: 32349 | C70: 8450 | D70: Ostale komunalne usluge | E70: 8450 | F70: 6760 | G70: bagat. nab.
B71: 3235 | C71: =SUM(C72:C75) -> 45000 | D71: Zakupnine i najamnine | E71: =SUM(E72:E75) -> 45000 | F71: =SUM(F72:F75) -> 36000 | H71: =SUM(H72:H75) -> 0 | I71: =SUM(I72:I75) -> 0 | J71: =SUM(J72:J75) -> 0
B72: 32351 | D72: Zakupnine za zemljišta
B73: 32352 | D73: Najamnine za građevinske objekte
B74: 32353 | D74: Najamnine za opremu
B75: 32359 | C75: =E75+H75+J75 -> 45000 | D75: Ostale najamnine i zakupnine | E75: 45000 | F75: 36000 | G75: bagat. nab.
B76: 3236 | C76: =SUM(C77:C80) -> 16000 | D76: Zdravstvene i veterinarske usluge | E76: =SUM(E77:E80) -> 16000 | F76: =SUM(F77:F80) -> 12800 | H76: =SUM(H77:H80) -> 0 | I76: =SUM(I77:I80) -> 0 | J76: =SUM(J77:J80) -> 0
B77: 32361 | C77: =E77+H77+J77 -> 12000 | D77: Obvezni i preventivni zdrav. pregledi zaposlenika | E77: 12000 | F77: 9600 | G77: bagat. nab.
B78: 32362 | C78: =E78+H78+J78 -> 0 | D78: Veterinarske usluge
B79: 32363 | C79: =E79+H79+J79 -> 0 | D79: Laboratorijske usluge
B80: 32369 | C80: =E80+H80+J80 -> 4000 | D80: Ostale zdravstvene i veterinarske usluge | E80: 4000 | F80: 3200 | G80: bagat. nab.
B81: 3237 | C81: =SUM(C82:C90) -> 1200 | D81: Intelektualne i osobne usluge | E81: =SUM(E82:E90) -> 1200 | F81: =SUM(F82:F90) -> 960 | H81: =SUM(H82:H90) -> 0 | I81: =SUM(I82:I90) -> 0 | J81: =SUM(J82:J90) -> 0
B82: 32371 | C82: =E82+H82+J82 -> 0 | D82: Autorski honorari
B83: 32372 | C83: =E83+H83+J83 -> 0 | D83: Ugovori o djelu
B84: 32373 | C84: 0 | D84: Usluge odvjetnika i pravnog savjetovanja
B85: 32374 | C85: 0 | D85: Revizorske usluge
B86: 32375 | C86: 0 | D86: Geodetsko-katastarske usluge
B87: 32376 | C87: 0 | D87: Usluge vještačenja
B88: 32377 | C88: 0 | D88: Usluge agencija, studentskog servisa
B89: 32378 | C89: 0 | D89: Znanstvenoistraživačke usluge
B90: 32379 | C90: 1200 | D90: Ostale intelektualne usluge | E90: 1200 | F90: 960 | G90: bagat. nab.
B91: 3238 | C91: =SUM(C92:C94) -> 5400 | D91: Računalne usluge | E91: =SUM(E92:E94) -> 5400 | F91: =SUM(F92:F94) -> 4320 | H91: =SUM(H92:H94) -> 0 | I91: =SUM(I92:I94) -> 0 | J91: =SUM(J92:J94) -> 0
B92: 32381 | C92: =E92+H92+J92 -> 0 | D92: Usluge ažuriranja računalnih baza
B93: 32382 | C93: =E93+H93+J93 -> 0 | D93: Usluge razvoja software-a
B94: 32389 | C94: =E94+H94+J94 -> 5400 | D94: Ostale računalne usluge | E94: 5400 | F94: 4320 | G94: bagat. nab.
B95: 3239 | C95: =SUM(C96:C100) -> 7000 | D95: Ostale usluge | E95: =SUM(E96:E100) -> 4000 | F95: =SUM(F96:F100) -> 3200 | H95: =SUM(H96:H100) -> 3000 | I95: =SUM(I96:I100) -> 0 | J95: =SUM(J96:J100) -> 0
B96: 32391 | C96: =E96+H96+J96 -> 0 | D96: Grafičke i tiskarske usluge, kopiranja i uvez i sl.
B97: 32392 | C97: =E97+H97+J97 -> 0 | D97: Film i izgrada fotografija
B98: 32393 | C98: =E98+H98+J98 -> 0 | D98: Uređenje prostora
B99: 32394 | C99: =E99+H99+J99 -> 0 | D99: Usluge pri registraciji prijevoznih sredstava
B100: 32399 | C100: =E100+H100+J100 -> 7000 | D100: Ostale nespomenute usluge | E100: 4000 | F100: 3200 | H100: 3000
C102: =SUM(C103+C108+C112+C114+C117) -> 170753 | D102: Ostali nespomenuti rashodi poslovanja | E102: =SUM(E103+E108+E112+E114+E117) -> 7368 | F102: =SUM(F103+F108+F112+F114+F117) -> 5900 | H102: =SUM(H103+H108+H112+H114+H117) -> 5000 | I102: =SUM(I103+I108+I112+I114+I117) -> 158385 | J102: =SUM(J103+J108+J112+J114+J117) -> 0
B103: 3291 | C103: =SUM(C104:C107) -> 0 | D103: Naknade za rad predstavničkih i izvršnih tijela, povjerenstava i slično | E103: =SUM(E104:E107) -> 0 | F103: =SUM(F104:F107) -> 0 | H103: =SUM(H104:H107) -> 0 | I103: =SUM(I104:I107) -> 0 | J103: =SUM(J104:J107) -> 0
B104: 32911 | D104: Naknade članovima predstavničkih i izvršnih tijela
B105: 32912 | D105: Naknade članovima povjerenstava
B106: 32913 | D106: Naknade za rad osobama lišenih slobode
B107: 32919 | D107: Ostale slične naknade za rad
B108: 3292 | C108: =SUM(C109:C111) -> 0 | D108: Premije osiguranja | E108: =SUM(E109:E111) -> 0 | F108: =SUM(F109:F111) -> 0 | H108: =SUM(H109:H111) -> 0 | I108: =SUM(I109:I111) -> 0 | J108: =SUM(J109:J111) -> 0
B109: 32921 | D109: Premije osiguranja prijevoznih sredstava
B110: 32922 | D110: Premije osiguranja ostale imovine
B111: 32923 | D111: Premije osiguranja zaposlenih
B112: 3293 | C112: =SUM(C113) -> 1000 | D112: Reprezentacija | E112: =SUM(E113) -> 1000 | F112: =SUM(F113) -> 800 | H112: =SUM(H113) -> 0 | I112: =SUM(I113) -> 0 | J112: =SUM(J113) -> 0
B113: 32931 | C113: =E113+H113+J113 -> 1000 | D113: Reprezentacija | E113: 1000 | F113: 800 | G113: bagat. nab.
B114: 3294 | C114: =SUM(C115:C116) -> 250 | D114: Članarine | E114: =SUM(E115:E116) -> 250 | F114: =SUM(F115:F116) -> 200 | H114: =SUM(H115:H116) -> 0 | I114: =SUM(I115:I116) -> 0 | J114: =SUM(J115:J116) -> 0
B115: 32941 | C115: =E115+H115 -> 250 | D115: Tuzemne članarine | E115: 250 | F115: 200 | G115: bagat. nab.
B116: 32942 | D116: Međunarodne članarine
B117: 3299 | C117: =SUM(C118) -> 169503 | D117: Ostali nespomenuti rashodi poslovanja | E117: =SUM(E118) -> 6118 | F117: =SUM(F118) -> 4900 | H117: =SUM(H118) -> 5000 | I117: =SUM(I118) -> 158385 | J117: =SUM(J118) -> 0
B118: 32999 | C118: =E118+H118+J118+I118 -> 169503 | D118: Ostali nespomenuti rashodi poslovanja | E118: 6118 | F118: 4900 | G118: bagat. nab. | H118: 5000 | I118: 158385
A120: 34 | C120: =SUM(C121) -> 1500 | D120: FINANCIJSKI RASHODI | E120: =SUM(E121) -> 1500 | F120: =SUM(F121) -> 1200 | H120: =SUM(H121) -> 0 | I120: =SUM(I121) -> 0 | J120: =SUM(J121) -> 0
C121: =SUM(C122+C125+C128+C132) -> 1500 | D121: Ostali financijski rashodi | E121: =SUM(E122+E125+E128+E132) -> 1500 | F121: =SUM(F122+F125+F128+F132) -> 1200 | H121: =SUM(H122+H125+H128+H132) -> 0 | I121: =SUM(I122+I125+I128+I132) -> 0 | J121: =SUM(J122+J125+J128+J132) -> 0
B122: 3431 | C122: =SUM(C123:C124) -> 1500 | D122: Bankarske usluge i usluge platnog prometa | E122: =SUM(E123:E124) -> 1500 | F122: =SUM(F123:F124) -> 1200 | H122: =SUM(H123:H124) -> 0 | I122: =SUM(I123:I124) -> 0 | J122: =SUM(J123:J124) -> 0
B123: 34311 | C123: =E123+H123 -> 1500 | D123: Usluge banaka | E123: 1500 | F123: 1200 | G123: bagat. nab.
B124: 34312 | D124: Usluge platnog prometa
B125: 3432 | C125: =SUM(C126:C127) -> 0 | D125: Negativne tečajne razlike i valutna klauzula | E125: =SUM(E126:E127) -> 0 | F125: =SUM(F126:F127) -> 0 | H125: =SUM(H126:H127) -> 0 | I125: =SUM(I126:I127) -> 0 | J125: =SUM(J126:J127) -> 0
B126: 34321 | D126: Negativne tečajne razlike
B127: 34324 | D127: Valutna klauzula
B128: 3433 | C128: =SUM(C129:C131) -> 0 | D128: Zatezne kamate | E128: =SUM(E129:E131) -> 0 | F128: =SUM(F129:F131) -> 0 | H128: =SUM(H129:H131) -> 0 | I128: =SUM(I129:I131) -> 0 | J128: =SUM(J129:J131) -> 0
B129: 34331 | D129: Zatezne kamate za poreze
B130: 34332 | D130: Zatezne kamate za doprinose
B131: 34333 | D131: Zatezne kamate iz poslovnih odnosa i drugo
B132: 3434 | C132: =SUM(C133) -> 0 | D132: Ostali nespomenuti financijski rashodi | E132: =SUM(E133) -> 0 | F132: =SUM(F133) -> 0 | H132: =SUM(H133) -> 0 | I132: =SUM(I133) -> 0 | J132: =SUM(J133) -> 0
B133: 34349 | D133: Ostali nespomenuti financijski rashodi
A135: 42 | C135: =SUM(C136+C169+C173) -> 3570 | D135: RASHODI ZA NABAVU PROIZVEDENE DUGOTRAJNE IMOVINE | E135: =SUM(E136+E169+E173) -> 0 | F135: =SUM(F136+F169+F173) -> 0 | H135: =SUM(H136+H169+H173) -> 0 | I135: =SUM(I136+I169+I173) -> 0 | J135: =SUM(J136+J169+J173) -> 3570
C136: =SUM(C137+C141+C146+C153+C156+C161+C164) -> 0 | D136: Postrojenja i oprema | E136: =SUM(E137+E141+E146+E153+E156+E161+E164) -> 0 | F136: =SUM(F137+F141+F146+F153+F156+F161+F164) -> 0 | H136: =SUM(H137+H141+H146+H153+H156+H161+H164) -> 0 | I136: =SUM(I137+I141+I146+I153+I156+I161+I164) -> 0 | J136: =SUM(J137+J141+J146+J153+J156+J161+J164) -> 0
B137: 4221 | C137: =SUM(C138:C140) -> 0 | D137: Uredska oprema i namještaj | E137: =SUM(E138:E140) -> 0 | F137: =SUM(F138:F140) -> 0 | H137: =SUM(H138:H140) -> 0 | I137: =SUM(I138:I140) -> 0 | J137: =SUM(J138:J140) -> 0
B138: 42211 | D138: Računala i računalna oprema | H138: 0
B139: 42212 | D139: Uredski namještaj
B140: 42219 | D140: Ostala uredska oprema
B141: 4222 | C141: =SUM(C142:C145) -> 0 | D141: Komunikacijska oprema | E141: =SUM(E142:E145) -> 0 | F141: =SUM(F142:F145) -> 0 | H141: =SUM(H142:H145) -> 0 | I141: =SUM(I142:I145) -> 0 | J141: =SUM(J142:J145) -> 0
B142: 42221 | D142: Radio i TV prijemnici
B143: 42222 | D143: Telefoni i ostali komunikacijski uređaji
B144: 42223 | D144: Telefonske i telegrafske centrale s pripadajućim instalacijama
B145: 42229 | D145: Ostala komunikacijska oprema
B146: 4223 | C146: =SUM(C147:C152) -> 0 | D146: Oprema za održavanje i zaštitu | E146: =SUM(E147:E152) -> 0 | F146: =SUM(F147:F152) -> 0 | H146: =SUM(H147:H152) -> 0 | I146: =SUM(I147:I152) -> 0 | J146: =SUM(J147:J152) -> 0
B147: 42231 | D147: Oprema za grijanje,ventilaciju i hlađenje
B148: 42232 | D148: Oprema za održavanje prostorija
B149: 42233 | D149: Oprema za protupožarnu zaštitu (osim vozila)
B150: 42234 | D150: Oprema za civilnu zaštitu
B151: 42235 | D151: Policijska oprema
B152: 42239 | D152: Ostala oprema za održavanje i zaštitu
B153: 4224 | C153: =SUM(C154:C155) -> 0 | D153: Medicinska i laboratorijska oprema | E153: =SUM(E154:E155) -> 0 | F153: =SUM(F154:F155) -> 0 | H153: =SUM(H154:H155) -> 0 | I153: =SUM(I154:I155) -> 0 | J153: =SUM(J154:J155) -> 0
B154: 42241 | C154: 0 | D154: Medicinska oprema | E154: 0 | F154: 0 | H154: 0 | I154: 0 | J154: 0
B155: 42242 | D155: Laboratorijska oprema
B156: 4225 | C156: =SUM(C157:C160) -> 0 | D156: Instrumenti, uređaji i strojevi | E156: =SUM(E157:E160) -> 0 | F156: =SUM(F157:F160) -> 0 | H156: =SUM(H157:H160) -> 0 | I156: =SUM(I157:I160) -> 0 | J156: =SUM(J157:J160) -> 0
B157: 42251 | D157: Precizni i optički instrumenti
B158: 42252 | D158: Mjerni i kontrolni uređaji
B159: 42253 | D159: Strojevi za obradu zemljištva
B160: 42259 | D160: Ostali instrumenti, uređaji i strojevi
B161: 4226 | C161: =SUM(C162:C163) -> 0 | D161: Sportska i glazbena oprema | E161: =SUM(E162:E163) -> 0 | F161: =SUM(F162:F163) -> 0 | H161: =SUM(H162:H163) -> 0 | I161: =SUM(I162:I163) -> 0 | J161: =SUM(J162:J163) -> 0
B162: 42261 | D162: Sportska oprema
B163: 42262 | D163: Glazbeni instrumenti i oprema
B164: 4227 | C164: =SUM(C165:C167) -> 0 | D164: Uređaji, strojevi i oprema za ostale namjene | E164: =SUM(E165:E167) -> 0 | F164: =SUM(F165:F167) -> 0 | H164: =SUM(H165:H167) -> 0 | I164: =SUM(I165:I167) -> 0 | J164: =SUM(J165:J167) -> 0
B165: 42271 | D165: Uređaji
B166: 42272 | D166: Strojevi
B167: 42273 | D167: Oprema
C169: =SUM(C170) -> 3570 | D169: Knjige, umjetnička djela i ostale izložbene vrijednosti | E169: 0 | F169: 0 | H169: 0 | I169: 0 | J169: 3570
B170: 4241 | C170: 3570 | D170: Knjige | E170: 0 | F170: 0 | H170: 0 | I170: 0 | J170: 3570
B171: 42411 | C171: =J171 -> 3570 | D171: Knjige | E171: 0 | F171: 0 | H171: 0 | J171: 3570
C172: =C173 -> 0 | D172: Nematerijalna proizvedena imovina | E172: 0 | F172: 0 | H172: 0 | I172: 0 | J172: 0
B173: 4262 | C173: 0 | D173: Ulaganja u računalne programe | E173: 0 | F173: 0 | H173: 0 | I173: 0 | J173: 0
B174: 42621 | C174: 0 | D174: Ulaganja u računalne programe | E174: 0 | F174: 0 | H174: 0 | I174: 0 | J174: 0
A175: 45 | C175: =SUM(C176+C179) -> 0 | D175: RASHODI ZA DODATNA ULAGANJA NA NEFINANCIJSKOJ IMOVINI | E175: =SUM(E176+E179) -> 0 | F175: =SUM(F176+F179) -> 0 | H175: =SUM(H176+H179) -> 0 | I175: =SUM(I176+I179) -> 0 | J175: =SUM(J176+J179) -> 0
C176: =SUM(C177) -> 0 | D176: Dodatna ulaganja na građevinskim objektima | E176: 0 | F176: 0 | H176: 0 | I176: 0 | J176: 0
C177: 0 | D177: Dodatna ulaganja na građevinskim objektima | E177: 0 | F177: 0 | H177: 0 | I177: 0 | J177: 0
B178: 45111 | D178: Dodatna ulaganja na građevinskim objektima
C179: =SUM(C180) -> 0 | D179: Dodatna ulaganja na postrojenjima i opremi | E179: 0 | F179: 0 | H179: 0 | I179: 0 | J179: 0
C180: 0 | D180: Dodatna ulaganja na postrojenjima i opremi | E180: 0 | F180: 0 | H180: 0 | I180: 0 | J180: 0
B181: 45211 | D181: Dodatna ulaganja na postrojenjima i opremi
A183: U planu nabave sva roba, materijal, usluge i artikli razvrstani su prema ekonomskoj klasifikaciji te se iznosi uklapaju u planirana sredstva
A184: u skladu s Financijskim planom za 2014. godinu od 70.000,00 kn bez PDV-a godišnje.
D189: Računovođa: | H189: Ravnateljica:
D190: Suzana Skrobonja | H190: Ankica Lambaša - Spahija
